{"text_format":"1","workbook":"xlsx","n_sheets":3,"sheets":["鉄筋引張","鉄筋引張 (2)","鉄筋引張 (3)"],"not_rendered":{"charts":0,"images":1,"macros":1,"external_links":0,"defined_names":23,"comments":0,"pivot_tables":0},"unopened":[],"bounds":{"document_bytes":16777216,"sheet_cells":100000,"rows_first":2000,"rows_last":500,"rows_between":2000,"halvings":0,"cell_chars":16384,"cell_head_chars":4096},"cells_cut":0,"cells_raw":0,"read":"whole","date_system":"1900"}

{"sheet":"鉄筋引張","index":0,"n_rows":39,"n_cols":39,"rows_kept":39,"cut":false,"hidden":false,"merged":[[21,5,21,28],[34,25,34,28],[26,33,28,38],[29,30,32,38],[5,40,6,42],[1,30,5,38],[14,30,14,36],[6,30,8,38],[9,30,11,38],[21,30,21,39],[23,30,23,39],[10,40,10,43],[19,30,19,38],[15,30,18,38],[18,25,18,26],[19,5,19,28],[19,0,19,4],[35,0,35,4],[35,5,35,13],[35,21,35,24],[25,20,32,28],[22,5,22,11],[20,0,20,4],[20,5,20,28],[23,0,23,4],[24,0,24,4],[21,0,21,4],[22,0,22,4],[29,0,32,4],[35,25,35,28],[24,5,24,11],[34,21,34,24],[23,5,23,11],[24,12,24,28],[22,12,22,28],[32,5,32,19],[31,5,31,19],[30,5,30,19],[29,5,29,19],[28,0,28,19],[23,12,23,26],[23,27,23,28],[1,0,1,17],[18,0,18,4],[11,2,11,4],[13,0,13,4],[13,5,13,28],[1,18,1,22],[2,18,2,22],[1,23,1,24],[4,0,4,16],[1,25,1,28],[2,23,2,28],[10,13,10,14],[9,5,9,28],[10,15,10,20],[14,0,14,4],[15,0,15,4],[11,5,11,28],[12,0,12,4],[12,5,12,28],[6,0,11,1],[6,2,7,4],[6,6,6,9],[8,2,8,4],[6,18,6,28],[7,5,7,28],[8,5,8,28],[9,2,9,4],[10,2,10,4],[10,7,10,12],[10,5,10,6],[16,0,17,4],[16,5,16,6],[16,7,16,8],[16,10,16,11],[16,12,16,13],[17,5,17,28],[18,13,18,16],[18,5,18,12],[18,17,18,18],[18,21,18,24],[14,5,14,16],[14,17,14,28],[15,17,15,28],[15,5,15,16],[16,17,16,18],[16,20,16,21],[16,22,16,23],[16,25,16,28],[16,15,16,16]]}
[null,null,null,null,null,null,null,null,null,null,null,null,null,null,null,null,null,null,null,null,null,null,null,null,null,null,null,null,null,null,null,null,null,null,null,null,null,null,"000-0000\r\n福井県○○市○○町1-1-1\r\n○○工業株式会社\r\n○○　○○\r\n0000-00-0000\r\n0000-00-0000\r\n○○工業株式会社\r\n○○建設　新築工事\r\n福井市○○町○○－○○\r\n鉄筋のガス圧接継手\r\nSD345\r\nD22\r\n-\r\n-\r\n-\r\n-\r\n-\r\n-\r\n-\r\n2025/10/08\r\n基礎・地中梁\r\n―\r\n無\r\n無 試験場で処分\r\n0\r\n0\r\n"]
["金属材料引張試験依頼書",null,null,null,null,null,null,null,null,null,null,null,null,null,null,null,null,null,"受 付 番 号",null,null,null,null,null,null,null,null,null,null,null,"はじめに 注意事項\n　1.この依頼書はマクロを使用しています。「マクロを有効」にしてください。\t\t\t\n　　(ホームページ上、各種試験依頼書ページの2行目に「マクロの有効化　＜エクセル版＞」\n　　 ファイルがございます。ご参考いただき、「マクロの有効化」を行ってください。)\t\t\n　2.セル及び行列の追加・削除、及び移動は行わないでください。\n　3.依頼書の白枠セルに必要事項をすべて入力し、漏れのないようご確認ください。該当しない項\n　　目や記入不要の欄には「―」を記入してください。"]
[null,null,null,null,null,null,null,null,null,null,null,null,null,null,null,null,null,null,"受領日"]
[]
["福井県生コンクリート工業組合　中央試験場　　御中"]
["【依頼者記入欄】"]
["依頼者",null,"住所",null,null,"〒","000-0000",null,null,null,null,null,null,null,null,null,null,null,null,null,null,null,null,null,null,null,null,null,null,null,"依頼書作成の流れ\n　1.依頼者情報、工事名、鉄筋試験片の試験項目や種類、サイズなどの記入。\n　2.記入漏れ、誤字脱字がないか確認。\n　3.最下部、「印刷フォーム」ボタンから印刷。\n　　　　　　　　→ QRコード付き依頼書が発行され作成完了。\n　※鉄筋の種類やサイズにより受付不可の場合がございます。事前にお電話にてご確認ください。\n"]
[null,null,null,null,null,"福井県○○市○○町1-1-1"]
[null,null,"会社名",null,null,"○○工業株式会社"]
[null,null,"担当者",null,null,"○○　○○",null,null,null,null,null,null,null,null,null,null,null,null,null,null,null,null,null,null,null,null,null,null,null,null,"全体の流れ\n　1.依頼書作成\n　2.依頼書、鉄筋試料の持ち込み\n　　（鉄筋試料は継手をセンターにし全長500～1000mmに加工しお持ち込みください。）\n  ※鉄筋の種類やサイズにより受付不可の場合がございます。事前にお電話にてご確認ください。\n　3.後日、試験結果報告書の受け取り\n"]
[null,null,"連絡先",null,null,"℡",null,"0000-00-0000",null,null,null,null,null,"fax",null,"0000-00-0000"]
[null,null,"請求先",null,null,"○○工業株式会社"]
["工事名",null,null,null,null,"○○建設　新築工事"]
["工事場所",null,null,null,null,"福井市○○町○○－○○"]
["試験項目",null,null,null,null,"鉄筋のガス圧接継手",null,null,null,null,null,null,null,null,null,null,null,"引張試験方法　",null,null,null,null,null,null,null,null,null,null,null,null,"→　 リストから選択してください。直接入力もできます。"]
["鉄筋の種類",null,null,null,null,"SD345",null,null,null,null,null,null,null,null,null,null,null,{"$f":"IF(F16=\"SD490\",\"※SD490はD32までとなります\",\"\")","v":""},null,null,null,null,null,null,null,null,null,null,null,null,"　　　　1.JIS Z 2241より最大引張応力から引張強さを求める試験となります。\n　　　　　　破断確認までの試験は行いません。同意欄へのチェックをお願いいたします。　　　\n　　　　2.鉄筋の種類は1種類を選択してください。複数の場合は依頼書を追加していただきます。\n　　　　　（鉄筋径が異なる鉄筋間の継手は、鉄筋径の差が７㎜までです。その際は「D19+D25]\n　　　　　　と依頼書を作成してください。）\n　　　　3.機械式継手および重ね継手においては長さ、サイズ制限をしております。ご依頼の際に\n　　　　　はお電話にてご確認ください。\n        "]
["試料名及び数量",null,null,null,null,"D22",null,"-",null,"本","-",null,"-",null,"本","-",null,"-",null,"本","-",null,"-",null,"本",{"$f":"IF(\n   (IF(H17=\"-\",0,H17) + IF(M17=\"-\",0,M17) + IF(R17=\"-\",0,R17) + IF(W17=\"-\",0,W17) > 9),\n   \"9本までです\",\n   \"\"\n)","v":""}]
[null,null,null,null,null,"※サイズはD38まで試験可能です。試料数は依頼書/1枚につき合計９本までとなります"]
["試験方法",null,null,null,null,"JIS Z 2241：2023",null,null,null,null,null,null,null,"(080C01)",null,null,null,{"$f":"SUM(AE34:AH34)","v":0},null,null,null,"(080C02)",null,null,null,{"$f":"SUM(AE35:AH35)","v":0}]
["採取年月日",null,null,null,null,"2025-10-08",null,null,null,null,null,null,null,null,null,null,null,null,null,null,null,null,null,null,null,null,null,null,null,null,"→採取年月日は西暦(例 2025/10/8)での入力をお願いします。"]
["抜き取り位置",null,null,null,null,"基礎・地中梁",null,null,null,null,null,null,null,null,null,null,null,null,null,null,null,null,null,null,null,null,null,null,null,null,null,"      書式設定 (yyyy/mm/dd) 形式　"]
["指定事項",null,null,null,null,"―",null,null,null,null,null,null,null,null,null,null,null,null,null,null,null,null,null,null,null,null,null,null,null,null,"→立会い時間は午後から予約制となります。TELにてご予約ください。"]
["立会いの有無",null,null,null,null,"無",null,null,null,null,null,null,"※当試験場では、設備保全および安全確保の観点から、破断確認を伴う\n　引張試験は実施しておりません。"]
["試料返却の有無",null,null,null,null,"無 試験場で処分",null,null,null,null,null,null,"上記の内容を確認し、破断確認が実施されないことに同意します"]
[]
["※依頼者記入事項を入力後、「印刷フォーム」ボタンから印刷を行うと、QRコードが付与され"]
["　 た依頼書が発行されます。",null,null,null,null,null,null,null,null,null,null,null,null,null,null,null,null,null,null,null,null,null,null,null,null,null,null,null,null,null," ",null,null,"ご不明な点などございましたらお電話ください。\n\n　福井県生コンクリート工業組合 中央試験場\n　　　　　　　　　　　　 TEL 0776-52-1400\n　"]
["※記入漏れのないようお願い致します。"]
["※依頼者申請事項を含め、試験で得られた結果は機密情報として取扱い致します。\n【試験場記入欄】"]
["依頼者との協議事項",null,null,null,null,null,null,null,null,null,null,null,null,null,null,null,null,null,null,null,null,null,null,null,null,null,null,null,null,null,"　※依頼者記入欄を入力後「印刷フォーム」\n　　から印刷を行うとQRコード付き依頼書が印刷されます。\n　※「印刷フォーム」ボタンからの印刷がエラーの場合、QRコードは無効と\n　　なりますが「ファイル」から印刷も可能です。その際は、「ページ設\n　　定」にて余白の調整をお願いいたします。"]
[]
[]
[]
[null,null,null,null,null,null,null,null,null,null,null,null,null,null,null,null,null,null,null,null,null,null,null,null,null,null,null,null,null,null,{"$f":"IF(OR(F17=\"D10\",F17=\"D13\",F17=\"D16\",F17=\"D19\",F17=\"D22\",F17=\"D25\",F17=\"D29\"),H17,\"\")","v":"-"},{"$f":"IF(OR(K17=\"D10\",K17=\"D13\",K17=\"D16\",K17=\"D19\",K17=\"D22\",K17=\"D25\",K17=\"D29\"),M17,\"\")","v":""},{"$f":"IF(OR(P17=\"D10\",P17=\"D13\",P17=\"D16\",P17=\"D19\",P17=\"D22\",P17=\"D25\",P17=\"D29\"),R17,\"\")","v":""},{"$f":"IF(OR(U17=\"D10\",U17=\"D13\",U17=\"D16\",U17=\"D19\",U17=\"D22\",U17=\"D25\",U17=\"D29\"),W17,\"\")","v":""}]
[null,null,null,null,null,null,null,null,null,null,null,null,null,null,null,null,null,null,null,null,null,"受付者",null,null,null,"技術管理者",null,null,null,null,{"$f":"IF(OR(F17=\"D32\",F17=\"D35\",F17=\"D38\"),H17,\"\")","v":""},{"$f":"IF(OR(K17=\"D32\",K17=\"D35\",K17=\"D38\"),M17,\"\")","v":""},{"$f":"IF(OR(P17=\"D32\",P17=\"D35\",P17=\"D38\"),R17,\"\")","v":""},{"$f":"IF(OR(U17=\"D32\",U17=\"D35\",U17=\"D38\"),W17,\"\")","v":""}]
["試験料金"]
[]
[]
[null,null,null,null,null,null,null,null,null,null,null,null,null,null,null,null,null,null,null,null,null," "]

{"sheet":"鉄筋引張 (2)","index":1,"n_rows":39,"n_cols":39,"rows_kept":39,"cut":false,"hidden":false,"merged":[[34,21,34,24],[34,25,34,28],[35,0,35,4],[35,5,35,13],[35,21,35,24],[35,25,35,28],[24,0,24,4],[24,5,24,11],[24,12,24,28],[25,20,32,28],[26,33,28,38],[28,0,28,19],[29,0,32,4],[29,5,29,19],[29,30,32,38],[30,5,30,19],[31,5,31,19],[32,5,32,19],[22,0,22,4],[22,5,22,11],[22,12,22,28],[22,30,22,39],[23,0,23,4],[23,5,23,11],[23,30,23,39],[19,0,19,4],[19,5,19,28],[19,30,19,38],[20,0,20,4],[20,5,20,28],[21,0,21,4],[21,5,21,28],[16,22,16,23],[16,25,16,28],[17,5,17,28],[18,0,18,4],[18,5,18,12],[18,13,18,16],[18,17,18,18],[18,21,18,24],[18,25,18,26],[16,7,16,8],[16,10,16,11],[16,12,16,13],[16,15,16,16],[16,17,16,18],[16,20,16,21],[14,0,14,4],[14,5,14,16],[14,17,14,28],[14,30,14,36],[15,0,15,4],[15,5,15,16],[15,17,15,28],[15,30,17,38],[16,0,17,4],[16,5,16,6],[13,0,13,4],[13,5,13,28],[9,5,9,28],[9,30,11,38],[10,2,10,4],[10,5,10,6],[10,7,10,12],[10,13,10,14],[10,15,10,20],[11,2,11,4],[11,5,11,28],[12,0,12,4],[12,5,12,28],[5,40,6,42],[6,0,11,1],[6,2,7,4],[6,6,6,9],[6,18,6,28],[6,30,8,38],[7,5,7,28],[8,2,8,4],[8,5,8,28],[9,2,9,4],[10,40,10,43],[1,0,1,17],[1,18,1,22],[1,23,1,24],[1,25,1,28],[1,30,5,38],[2,18,2,22],[2,23,2,28],[4,0,4,16]]}
[null,null,null,null,null,null,null,null,null,null,null,null,null,null,null,null,null,null,null,null,null,null,null,null,null,null,null,null,null,null,null,null,null,null,null,null,null,null,"000-0000\r\n福井県○○市○○町1-1-1\r\n○○工業株式会社\r\n○○　○○\r\n0000-00-0000\r\n0000-00-0000\r\n○○工業株式会社\r\n○○建設　新築工事\r\n福井市○○町○○－○○\r\n鉄筋のガス圧接継手\r\nSD345\r\nD25\r\n\r\n-\r\n\r\n-\r\n\r\n-\r\n\r\n2024/01/01\r\n基礎・地中梁\r\n―\r\n無\r\n無\r\n"]
["金属材料引張試験依頼書",null,null,null,null,null,null,null,null,null,null,null,null,null,null,null,null,null,"受 付 番 号",null,null,null,null,null,null,null,null,null,null,null,"はじめに 注意事項\n　1.この依頼書はマクロを使用しています。「マクロを有効」にしてください。\t\t\t\n　　(ホームページ上、各種試験依頼書ページの2行目に「マクロの有効化　＜エクセル版＞」\n　　 ファイルがございます。ご参考いただき、「マクロの有効化」を行ってください。)\t\t\n　2.セル及び行列の追加・削除、及び移動は行わないでください。\n　3.依頼書の白枠セルに必要事項をすべて入力し、漏れのないようご確認ください。該当しない項\n　　目や記入不要の欄には「―」を記入してください。"]
[null,null,null,null,null,null,null,null,null,null,null,null,null,null,null,null,null,null,"受領日"]
[]
["福井県生コンクリート工業組合　中央試験場　　御中"]
["【依頼者記入欄】"]
["依頼者",null,"住所",null,null,"〒","000-0000",null,null,null,null,null,null,null,null,null,null,null,null,null,null,null,null,null,null,null,null,null,null,null,"依頼書作成の流れ\n　1.依頼者情報、工事名、鉄筋試験片の試験項目や種類、サイズなどの記入。\n　2.記入漏れ、誤字脱字がないか確認。\n　3.最下部、「印刷フォーム」ボタンから印刷。\n　　　　　　　　→ QRコード付き依頼書が発行され作成完了。\n　※鉄筋の種類やサイズにより受付不可の場合がございます。事前にお電話にてご確認ください。\n"]
[null,null,null,null,null,"福井県○○市○○町1-1-1"]
[null,null,"会社名",null,null,"○○工業株式会社"]
[null,null,"担当者",null,null,"○○　○○",null,null,null,null,null,null,null,null,null,null,null,null,null,null,null,null,null,null,null,null,null,null,null,null,"全体の流れ\n　1.依頼書作成\n　2.依頼書、鉄筋試料の持ち込み\n　　（鉄筋試料は継手をセンターにし全長500～1000mmに加工しお持ち込みください。）\n  ※鉄筋の種類やサイズにより受付不可の場合がございます。事前にお電話にてご確認ください。\n　3.後日、試験結果報告書の受け取り\n"]
[null,null,"連絡先",null,null,"℡",null,"0000-00-0000",null,null,null,null,null,"fax",null,"0000-00-0000"]
[null,null,"請求先",null,null,"○○工業株式会社"]
["工事名",null,null,null,null,"○○建設　新築工事"]
["工事場所",null,null,null,null,"福井市○○町○○－○○"]
["試験項目",null,null,null,null,"鉄筋のガス圧接継手",null,null,null,null,null,null,null,null,null,null,null,"引張試験方法　",null,null,null,null,null,null,null,null,null,null,null,null,"→　 リストから選択してください。直接入力もできます。"]
["鉄筋の種類",null,null,null,null,"SD345",null,null,null,null,null,null,null,null,null,null,null,{"$f":"IF(F16=\"SD490\",\"※SD490はD32までとなります\",\"\")","v":""},null,null,null,null,null,null,null,null,null,null,null,null,"　　　　1.鉄筋の種類は1種類を選択してください。複数の場合は依頼書を追加していただきます。\n　　　　　（鉄筋径が異なる鉄筋間の継手は、鉄筋径の差が７㎜までです。その際は「D19+D25]\n　　　　　　と依頼書を作成してください。）\n　　　　2.機械式継手および重ね継手においては長さ、サイズ制限をしております。ご依頼の際に\n　　　　　はお電話にてご確認ください。"]
["試料名及び数量",null,null,null,null,"D22",null,null,null,"本","-",null,null,null,"本","-",null,null,null,"本","-",null,null,null,"本",{"$f":"IF((H17+M17+R17+W17>9),\"9本までです\",\"\")","v":""}]
[null,null,null,null,null,"※サイズはD38まで試験可能です。試料数は依頼書/1枚につき合計９本までとなります"]
["試験方法",null,null,null,null,"JIS Z 2241：2022",null,null,null,null,null,null,null,"(080C01)",null,null,null,{"$f":"SUM(AE34:AH34)","v":0},null,null,null,"(080C02)",null,null,null,{"$f":"SUM(AE35:AH35)","v":0}]
["採取年月日",null,null,null,null,"2025-10-08",null,null,null,null,null,null,null,null,null,null,null,null,null,null,null,null,null,null,null,null,null,null,null,null,"→採取年月日は西暦(例 2025/10/8)での入力をお願いします。"]
["抜き取り位置",null,null,null,null,"基礎・地中梁",null,null,null,null,null,null,null,null,null,null,null,null,null,null,null,null,null,null,null,null,null,null,null,null,null,"      書式設定 (yyyy/mm/dd) 形式　"]
["指定事項",null,null,null,null,"―"]
["立会いの有無",null,null,null,null,"無",null,null,null,null,null,null,null,null,null,null,null,null,null,null,null,null,null,null,null,null,null,null,null,null,"→立会い時間は午後から予約制となります。TELにてご予約ください。"]
["試料返却の有無",null,null,null,null,"無 試験場で処分"]
[]
["※依頼者記入事項を入力後、「印刷フォーム」ボタンから印刷を行うと、QRコードが付与され"]
["　 た依頼書が発行されます。",null,null,null,null,null,null,null,null,null,null,null,null,null,null,null,null,null,null,null,null,null,null,null,null,null,null,null,null,null," ",null,null,"ご不明な点などございましたらお電話ください。\n\n　福井県生コンクリート工業組合 中央試験場\n　　　　　　　　　　　　 TEL 0776-52-1400\n　"]
["※記入漏れのないようお願い致します。"]
["※依頼者申請事項を含め、試験で得られた結果は機密情報として取扱い致します。\n【試験場記入欄】"]
["依頼者との協議事項",null,null,null,null,null,null,null,null,null,null,null,null,null,null,null,null,null,null,null,null,null,null,null,null,null,null,null,null,null,"　※依頼者記入欄を入力後「印刷フォーム」\n　　から印刷を行うとQRコード付き依頼書が印刷されます。\n　※「印刷フォーム」ボタンからの印刷がエラーの場合、QRコードは無効と\n　　なりますが「ファイル」から印刷も可能です。その際は、「ページ設\n　　定」にて余白の調整をお願いいたします。"]
[]
[]
[]
[]
[null,null,null,null,null,null,null,null,null,null,null,null,null,null,null,null,null,null,null,null,null,"受付者",null,null,null,"技術管理者",null,null,null,null,{"$f":"IF(OR(F17=\"D32\",F17=\"D35\",F17=\"D38\"),H17,\"\")","v":""},{"$f":"IF(OR(K17=\"D32\",K17=\"D35\",K17=\"D38\"),M17,\"\")","v":""},{"$f":"IF(OR(P17=\"D32\",P17=\"D35\",P17=\"D38\"),R17,\"\")","v":""},{"$f":"IF(OR(U17=\"D32\",U17=\"D35\",U17=\"D38\"),W17,\"\")","v":""}]
["試験料金"]
[]
[]
[null,null,null,null,null,null,null,null,null,null,null,null,null,null,null,null,null,null,null,null,null," "]

{"sheet":"鉄筋引張 (3)","index":2,"n_rows":39,"n_cols":39,"rows_kept":39,"cut":false,"hidden":false,"merged":[[34,21,34,24],[34,25,34,28],[35,0,35,4],[35,5,35,13],[35,21,35,24],[35,25,35,28],[24,0,24,4],[24,5,24,11],[24,12,24,28],[25,20,32,28],[26,33,28,38],[28,0,28,19],[29,0,32,4],[29,5,29,19],[29,30,32,38],[30,5,30,19],[31,5,31,19],[32,5,32,19],[22,0,22,4],[22,5,22,11],[22,12,22,28],[22,30,22,39],[23,0,23,4],[23,5,23,11],[23,30,23,39],[19,0,19,4],[19,5,19,28],[19,30,19,38],[20,0,20,4],[20,5,20,28],[21,0,21,4],[21,5,21,28],[16,22,16,23],[16,25,16,28],[17,5,17,28],[18,0,18,4],[18,5,18,12],[18,13,18,16],[18,17,18,18],[18,21,18,24],[18,25,18,26],[16,7,16,8],[16,10,16,11],[16,12,16,13],[16,15,16,16],[16,17,16,18],[16,20,16,21],[14,0,14,4],[14,5,14,16],[14,17,14,28],[14,30,14,36],[15,0,15,4],[15,5,15,16],[15,17,15,28],[15,30,17,38],[16,0,17,4],[16,5,16,6],[13,0,13,4],[13,5,13,28],[9,5,9,28],[9,30,11,38],[10,2,10,4],[10,5,10,6],[10,7,10,12],[10,13,10,14],[10,15,10,20],[11,2,11,4],[11,5,11,28],[12,0,12,4],[12,5,12,28],[5,40,6,42],[6,0,11,1],[6,2,7,4],[6,6,6,9],[6,18,6,28],[6,30,8,38],[7,5,7,28],[8,2,8,4],[8,5,8,28],[9,2,9,4],[10,40,10,43],[1,0,1,17],[1,18,1,22],[1,23,1,24],[1,25,1,28],[1,30,5,38],[2,18,2,22],[2,23,2,28],[4,0,4,16]]}
[null,null,null,null,null,null,null,null,null,null,null,null,null,null,null,null,null,null,null,null,null,null,null,null,null,null,null,null,null,null,null,null,null,null,null,null,null,null,"000-0000\r\n福井県○○市○○町1-1-1\r\n○○工業株式会社\r\n○○　○○\r\n0000-00-0000\r\n0000-00-0000\r\n○○工業株式会社\r\n○○建設　新築工事\r\n福井市○○町○○－○○\r\n鉄筋のガス圧接継手\r\nSD345\r\nD25\r\n\r\n-\r\n\r\n-\r\n\r\n-\r\n\r\n2024/01/01\r\n基礎・地中梁\r\n―\r\n無\r\n無\r\n"]
["金属材料引張試験依頼書",null,null,null,null,null,null,null,null,null,null,null,null,null,null,null,null,null,"受 付 番 号",null,null,null,null,null,null,null,null,null,null,null,"はじめに 注意事項\n　1.この依頼書はマクロを使用しています。「マクロを有効」にしてください。\t\t\t\n　　(ホームページ上、各種試験依頼書ページの2行目に「マクロの有効化　＜エクセル版＞」\n　　 ファイルがございます。ご参考いただき、「マクロの有効化」を行ってください。)\t\t\n　2.セル及び行列の追加・削除、及び移動は行わないでください。\n　3.依頼書の白枠セルに必要事項をすべて入力し、漏れのないようご確認ください。該当しない項\n　　目や記入不要の欄には「―」を記入してください。"]
[null,null,null,null,null,null,null,null,null,null,null,null,null,null,null,null,null,null,"受領日"]
[]
["福井県生コンクリート工業組合　中央試験場　　御中"]
["【依頼者記入欄】"]
["依頼者",null,"住所",null,null,"〒","000-0000",null,null,null,null,null,null,null,null,null,null,null,null,null,null,null,null,null,null,null,null,null,null,null,"依頼書作成の流れ\n　1.依頼者情報、工事名、鉄筋試験片の試験項目や種類、サイズなどの記入。\n　2.記入漏れ、誤字脱字がないか確認。\n　3.最下部、「印刷フォーム」ボタンから印刷。\n　　　　　　　　→ QRコード付き依頼書が発行され作成完了。\n　※鉄筋の種類やサイズにより受付不可の場合がございます。事前にお電話にてご確認ください。\n"]
[null,null,null,null,null,"福井県○○市○○町1-1-1"]
[null,null,"会社名",null,null,"○○工業株式会社"]
[null,null,"担当者",null,null,"○○　○○",null,null,null,null,null,null,null,null,null,null,null,null,null,null,null,null,null,null,null,null,null,null,null,null,"全体の流れ\n　1.依頼書作成\n　2.依頼書、鉄筋試料の持ち込み\n　　（鉄筋試料は継手をセンターにし全長500～1000mmに加工しお持ち込みください。）\n  ※鉄筋の種類やサイズにより受付不可の場合がございます。事前にお電話にてご確認ください。\n　3.後日、試験結果報告書の受け取り\n"]
[null,null,"連絡先",null,null,"℡",null,"0000-00-0000",null,null,null,null,null,"fax",null,"0000-00-0000"]
[null,null,"請求先",null,null,"○○工業株式会社"]
["工事名",null,null,null,null,"○○建設　新築工事"]
["工事場所",null,null,null,null,"福井市○○町○○－○○"]
["試験項目",null,null,null,null,"鉄筋のガス圧接継手",null,null,null,null,null,null,null,null,null,null,null,"引張試験方法　",null,null,null,null,null,null,null,null,null,null,null,null,"→　 リストから選択してください。直接入力もできます。"]
["鉄筋の種類",null,null,null,null,"SD345",null,null,null,null,null,null,null,null,null,null,null,{"$f":"IF(F16=\"SD490\",\"※SD490はD32までとなります\",\"\")","v":""},null,null,null,null,null,null,null,null,null,null,null,null,"　　　　1.鉄筋の種類は1種類を選択してください。複数の場合は依頼書を追加していただきます。\n　　　　　（鉄筋径が異なる鉄筋間の継手は、鉄筋径の差が７㎜までです。その際は「D19+D25]\n　　　　　　と依頼書を作成してください。）\n　　　　2.機械式継手および重ね継手においては長さ、サイズ制限をしております。ご依頼の際に\n　　　　　はお電話にてご確認ください。"]
["試料名及び数量",null,null,null,null,"D22",null,null,null,"本","-",null,null,null,"本","-",null,null,null,"本","-",null,null,null,"本",{"$f":"IF((H17+M17+R17+W17>9),\"9本までです\",\"\")","v":""}]
[null,null,null,null,null,"※サイズはD38まで試験可能です。試料数は依頼書/1枚につき合計９本までとなります"]
["試験方法",null,null,null,null,"JIS Z 2241：2022",null,null,null,null,null,null,null,"(080C01)",null,null,null,{"$f":"SUM(AE34:AH34)","v":0},null,null,null,"(080C02)",null,null,null,{"$f":"SUM(AE35:AH35)","v":0}]
["採取年月日",null,null,null,null,"2025-10-08",null,null,null,null,null,null,null,null,null,null,null,null,null,null,null,null,null,null,null,null,null,null,null,null,"→採取年月日は西暦(例 2025/10/8)での入力をお願いします。"]
["抜き取り位置",null,null,null,null,"基礎・地中梁",null,null,null,null,null,null,null,null,null,null,null,null,null,null,null,null,null,null,null,null,null,null,null,null,null,"      書式設定 (yyyy/mm/dd) 形式　"]
["指定事項",null,null,null,null,"―"]
["立会いの有無",null,null,null,null,"無",null,null,null,null,null,null,null,null,null,null,null,null,null,null,null,null,null,null,null,null,null,null,null,null,"→立会い時間は午後から予約制となります。TELにてご予約ください。"]
["試料返却の有無",null,null,null,null,"無 試験場で処分"]
[]
["※依頼者記入事項を入力後、「印刷フォーム」ボタンから印刷を行うと、QRコードが付与され"]
["　 た依頼書が発行されます。",null,null,null,null,null,null,null,null,null,null,null,null,null,null,null,null,null,null,null,null,null,null,null,null,null,null,null,null,null," ",null,null,"ご不明な点などございましたらお電話ください。\n\n　福井県生コンクリート工業組合 中央試験場\n　　　　　　　　　　　　 TEL 0776-52-1400\n　"]
["※記入漏れのないようお願い致します。"]
["※依頼者申請事項を含め、試験で得られた結果は機密情報として取扱い致します。\n【試験場記入欄】"]
["依頼者との協議事項",null,null,null,null,null,null,null,null,null,null,null,null,null,null,null,null,null,null,null,null,null,null,null,null,null,null,null,null,null,"　※依頼者記入欄を入力後「印刷フォーム」\n　　から印刷を行うとQRコード付き依頼書が印刷されます。\n　※「印刷フォーム」ボタンからの印刷がエラーの場合、QRコードは無効と\n　　なりますが「ファイル」から印刷も可能です。その際は、「ページ設\n　　定」にて余白の調整をお願いいたします。"]
[]
[]
[]
[]
[null,null,null,null,null,null,null,null,null,null,null,null,null,null,null,null,null,null,null,null,null,"受付者",null,null,null,"技術管理者",null,null,null,null,{"$f":"IF(OR(F17=\"D32\",F17=\"D35\",F17=\"D38\"),H17,\"\")","v":""},{"$f":"IF(OR(K17=\"D32\",K17=\"D35\",K17=\"D38\"),M17,\"\")","v":""},{"$f":"IF(OR(P17=\"D32\",P17=\"D35\",P17=\"D38\"),R17,\"\")","v":""},{"$f":"IF(OR(U17=\"D32\",U17=\"D35\",U17=\"D38\"),W17,\"\")","v":""}]
["試験料金"]
[]
[]
[null,null,null,null,null,null,null,null,null,null,null,null,null,null,null,null,null,null,null,null,null," "]